[Event "GrandPrix_29.05"]
[Site "Chess.com"]
[Date "2020.05.29"]
[Round "1"]
[White "eristeski7"]
[Black "TheJoker64"]
[Result "1/2-1/2"]
[WhiteElo "2110"]
[BlackElo "2299"]
[TimeControl "600+2"]
[EndTime "9:14:01 PDT"]
[Termination "Game drawn by agreement"]

1. e4 {[%clk 0:10:01.4]} 1... c5 {[%clk 0:09:58.4]} 2. Nf3 {[%clk 0:10:01.9]}
2... Nc6 {[%clk 0:09:57]} 3. Bb5 {[%clk 0:10:02.3]} 3... d6 {[%clk 0:09:38.1]}
4. O-O {[%clk 0:09:57]} 4... Bd7 {[%clk 0:09:38.2]} 5. c3 {[%clk 0:09:55.5]}
5... a6 {[%clk 0:09:30.2]} 6. Ba4 {[%clk 0:09:56.3]} 6... Nf6 {[%clk 0:09:19.1]}
7. Re1 {[%clk 0:09:45.6]} 7... b5 {[%clk 0:09:13]} 8. Bc2 {[%clk 0:09:43.8]}
8... Bg4 {[%clk 0:09:00.8]} 9. h3 {[%clk 0:09:42.8]} 9... Bh5 {[%clk 0:08:43.9]}
10. d3 {[%clk 0:09:07.1]} 10... e6 {[%clk 0:08:38.9]} 11. Nbd2 {[%clk
0:09:06.5]} 11... Be7 {[%clk 0:08:37.4]} 12. Nf1 {[%clk 0:09:06.1]} 12... h6
{[%clk 0:07:47.2]} 13. Ng3 {[%clk 0:09:01.5]} 13... Bg6 {[%clk 0:07:47.8]} 14.
d4 {[%clk 0:07:58.9]} 14... cxd4 {[%clk 0:07:40]} 15. Nxd4 {[%clk 0:08:00.8]}
15... Rc8 {[%clk 0:07:22.9]} 16. a4 {[%clk 0:07:17.8]} 16... Nxd4 {[%clk
0:07:12.7]} 17. cxd4 {[%clk 0:07:16.8]} 17... d5 {[%clk 0:06:54.8]} 18. axb5
{[%clk 0:06:53.5]} 18... axb5 {[%clk 0:06:54.5]} 19. Bd3 {[%clk 0:06:52]} 19...
O-O {[%clk 0:06:45.1]} 20. e5 {[%clk 0:06:34]} 20... Ne4 {[%clk 0:05:25.2]} 21.
Nxe4 {[%clk 0:06:27.3]} 21... dxe4 {[%clk 0:05:24.3]} 22. Bxe4 {[%clk
0:06:26.7]} 22... Rc4 {[%clk 0:05:04.5]} 23. Bxg6 {[%clk 0:05:36.6]} 23... fxg6
{[%clk 0:04:58]} 24. Be3 {[%clk 0:05:31.5]} 24... Qd5 {[%clk 0:04:50.2]} 25. Qd3
{[%clk 0:04:53.8]} 25... Kh7 {[%clk 0:04:32.2]} 1/2-1/2

[Event "GrandPrix_29.05"]
[Site "Chess.com"]
[Date "2020.05.29"]
[Round "1"]
[White "Bosiocic"]
[Black "Tolya2"]
[Result "1-0"]
[WhiteElo "2685"]
[BlackElo "2159"]
[TimeControl "600+2"]
[EndTime "9:14:34 PDT"]
[Termination "Bosiocic won by resignation"]

1. d4 {[%clk 0:10:01.3]} 1... d5 {[%clk 0:09:58.3]} 2. Bf4 {[%clk 0:09:55.9]}
2... c5 {[%clk 0:09:57.8]} 3. e3 {[%clk 0:09:54.8]} 3... e6 {[%clk 0:09:57.2]}
4. Nc3 {[%clk 0:09:53.5]} 4... a6 {[%clk 0:09:57.2]} 5. Nf3 {[%clk 0:09:51.6]}
5... Nc6 {[%clk 0:09:57.8]} 6. a3 {[%clk 0:09:47.9]} 6... Bd6 {[%clk 0:09:57.9]}
7. dxc5 {[%clk 0:09:43.1]} 7... Bxc5 {[%clk 0:09:55.8]} 8. Bd3 {[%clk
0:09:42.8]} 8... Nf6 {[%clk 0:09:53]} 9. O-O {[%clk 0:09:42.5]} 9... O-O {[%clk
0:09:49]} 10. e4 {[%clk 0:09:37.4]} 10... dxe4 {[%clk 0:09:41.2]} 11. Nxe4
{[%clk 0:09:37.9]} 11... Be7 {[%clk 0:09:39.2]} 12. Qe2 {[%clk 0:09:24.7]} 12...
Nd4 {[%clk 0:09:31.9]} 13. Nxd4 {[%clk 0:09:09.2]} 13... Qxd4 {[%clk 0:09:31.9]}
14. c3 {[%clk 0:09:08.5]} 14... Qa4 {[%clk 0:09:23.9]} 15. Rad1 {[%clk
0:09:01.7]} 15... Bd7 {[%clk 0:09:20.9]} 16. Bc2 {[%clk 0:08:13.3]} 16... Qb5
{[%clk 0:08:56.1]} 17. c4 {[%clk 0:07:49.6]} 17... Qc6 {[%clk 0:08:52.1]} 18.
Nxf6+ {[%clk 0:07:40.3]} 18... Bxf6 {[%clk 0:08:52.8]} 19. Qd3 {[%clk
0:07:37.1]} 19... g6 {[%clk 0:08:41.5]} 20. Qxd7 {[%clk 0:07:22]} 20... Qxc4
{[%clk 0:08:41.8]} 21. Qd2 {[%clk 0:07:22.7]} 21... Bxb2 {[%clk 0:08:34.2]} 22.
Bh6 {[%clk 0:06:49.1]} 22... Bg7 {[%clk 0:08:28]} 23. Bxg7 {[%clk 0:06:49.6]}
23... Kxg7 {[%clk 0:08:29.2]} 24. Qd4+ {[%clk 0:06:50.3]} 24... Qxd4 {[%clk
0:08:29.1]} 25. Rxd4 {[%clk 0:06:51.4]} 25... Rfc8 {[%clk 0:08:23.3]} 26. Be4
{[%clk 0:06:45.6]} 26... Rc3 {[%clk 0:08:22.4]} 27. a4 {[%clk 0:06:40.1]} 27...
Rb8 {[%clk 0:08:21.2]} 28. g3 {[%clk 0:06:34.8]} 28... b5 {[%clk 0:08:19.8]} 29.
axb5 {[%clk 0:06:34.9]} 29... axb5 {[%clk 0:08:20.8]} 30. Rb1 {[%clk 0:06:34]}
30... f5 {[%clk 0:08:11.8]} 31. Bg2 {[%clk 0:06:30.9]} 31... Kf6 {[%clk
0:08:11.3]} 32. Rdb4 {[%clk 0:06:28.9]} 32... Rc5 {[%clk 0:08:10.6]} 33. Bf1
{[%clk 0:06:29.1]} 33... g5 {[%clk 0:08:10.2]} 34. Rxb5 {[%clk 0:06:30.2]} 34...
Rbxb5 {[%clk 0:08:10.8]} 35. Rxb5 {[%clk 0:06:30.5]} 35... Rc2 {[%clk
0:08:09.2]} 36. Rb6 {[%clk 0:06:27.2]} 36... h5 {[%clk 0:08:09.2]} 37. Ba6
{[%clk 0:06:16.9]} 37... h4 {[%clk 0:08:06.5]} 38. gxh4 {[%clk 0:06:16.9]} 38...
gxh4 {[%clk 0:08:07.4]} 39. h3 {[%clk 0:06:17.1]} 39... Ke5 {[%clk 0:07:59.5]}
40. Kg2 {[%clk 0:06:10.5]} 40... Kf6 {[%clk 0:07:48.2]} 41. Bb7 {[%clk
0:06:08.1]} 41... Re2 {[%clk 0:07:42.1]} 42. Bc8 {[%clk 0:06:02.9]} 42... Re1
{[%clk 0:07:40.2]} 43. Kf3 {[%clk 0:05:54.5]} 43... Re5 {[%clk 0:07:30]} 44. Kg2
{[%clk 0:05:27.2]} 44... Re1 {[%clk 0:07:27.7]} 45. Ra6 {[%clk 0:05:26.9]} 45...
Re2 {[%clk 0:07:25]} 46. Kf1 {[%clk 0:05:24.7]} 46... Re4 {[%clk 0:07:22.5]} 47.
f3 {[%clk 0:05:25.5]} 47... Re5 {[%clk 0:07:15.4]} 48. Kf2 {[%clk 0:05:26.1]}
48... f4 {[%clk 0:07:05.7]} 49. Ra4 {[%clk 0:05:12.7]} 49... Kf5 {[%clk
0:06:56]} 50. Ba6 {[%clk 0:04:55.1]} 50... Rd5 {[%clk 0:06:50.5]} 51. Be2 {[%clk
0:04:53.2]} 51... Rd2 {[%clk 0:06:44.2]} 52. Ra8 {[%clk 0:04:52.6]} 52... Rd4
{[%clk 0:06:26.9]} 53. Rh8 {[%clk 0:04:52]} 53... Kg5 {[%clk 0:06:27.4]} 54.
Rg8+ {[%clk 0:04:52.9]} 54... Kh5 {[%clk 0:06:27.7]} 55. Re8 {[%clk 0:04:51.8]}
55... Rd6 {[%clk 0:06:26.1]} 56. Bc4 {[%clk 0:04:50.2]} 56... Rd2+ {[%clk
0:06:24.3]} 57. Ke1 {[%clk 0:04:50.9]} 57... Rc2 {[%clk 0:06:18.5]} 58. Bxe6
{[%clk 0:04:51.5]} 58... Kg5 {[%clk 0:06:17.1]} 59. Bg4 {[%clk 0:04:51.3]} 59...
Rb2 {[%clk 0:06:14.1]} 60. Re5+ {[%clk 0:04:51.5]} 60... Kg6 {[%clk 0:06:14.7]}
61. Rh5 {[%clk 0:04:48.8]} 1-0

[Event "GrandPrix_29.05"]
[Site "Chess.com"]
[Date "2020.05.29"]
[Round "1"]
[White "Nodar_Lortkipanidze"]
[Black "Tokarev_Sergey"]
[Result "1-0"]
[WhiteElo "2471"]
[BlackElo "2022"]
[TimeControl "600+2"]
[EndTime "9:14:47 PDT"]
[Termination "Nodar_Lortkipanidze won by resignation"]

1. e4 {[%clk 0:10:01.9]} 1... e6 {[%clk 0:09:59.1]} 2. d4 {[%clk 0:10:02.2]}
2... d5 {[%clk 0:09:57.4]} 3. exd5 {[%clk 0:09:55.6]} 3... exd5 {[%clk
0:09:59.3]} 4. Bd3 {[%clk 0:09:56.6]} 4... h6 {[%clk 0:09:52.5]} 5. Qf3 {[%clk
0:09:54.8]} 5... Nf6 {[%clk 0:09:43.9]} 6. h3 {[%clk 0:09:55.4]} 6... c5 {[%clk
0:09:05.8]} 7. dxc5 {[%clk 0:09:53.2]} 7... Bxc5 {[%clk 0:09:07.7]} 8. Ne2
{[%clk 0:09:53.3]} 8... Nc6 {[%clk 0:08:12.2]} 9. Bf4 {[%clk 0:09:38.6]} 9...
Qb6 {[%clk 0:07:19.8]} 10. O-O {[%clk 0:09:20.8]} 10... O-O {[%clk 0:07:01.1]}
11. Nbc3 {[%clk 0:09:20.2]} 11... Be6 {[%clk 0:06:20.4]} 12. Na4 {[%clk
0:09:05.9]} 12... Qa5 {[%clk 0:06:18.3]} 13. Nxc5 {[%clk 0:09:05.2]} 13... Qxc5
{[%clk 0:06:20.2]} 14. Bxh6 {[%clk 0:08:49.5]} 14... Ne4 {[%clk 0:03:29.9]} 15.
Be3 {[%clk 0:08:33.3]} 15... Qb4 {[%clk 0:02:22.4]} 16. Bxe4 {[%clk 0:08:32.7]}
16... dxe4 {[%clk 0:02:17.6]} 17. Qg3 {[%clk 0:08:27.4]} 17... Qxb2 {[%clk
0:02:13.6]} 18. Rab1 {[%clk 0:08:28.2]} 18... Qxc2 {[%clk 0:02:14.7]} 19. Bh6
{[%clk 0:07:53.5]} 19... g6 {[%clk 0:02:01.3]} 20. Nf4 {[%clk 0:07:28.2]} 20...
Bf5 {[%clk 0:02:02]} 21. Qh4 {[%clk 0:06:54.9]} 21... Qc3 {[%clk 0:01:39.2]} 22.
Nd5 {[%clk 0:06:53.3]} 1-0

[Event "GrandPrix_29.05"]
[Site "Chess.com"]
[Date "2020.05.29"]
[Round "1"]
[White "Infernal_XaM"]
[Black "elohunter1999"]
[Result "1-0"]
[WhiteElo "2674"]
[BlackElo "2181"]
[TimeControl "600+2"]
[EndTime "9:14:56 PDT"]
[Termination "Infernal_XaM won by resignation"]

1. d4 {[%clk 0:10:00.9]} 1... Nf6 {[%clk 0:09:59.1]} 2. c4 {[%clk 0:10:01.5]}
2... e6 {[%clk 0:09:58.3]} 3. Nc3 {[%clk 0:09:59]} 3... Bb4 {[%clk 0:09:58.1]}
4. Bd2 {[%clk 0:09:57]} 4... O-O {[%clk 0:09:26.7]} 5. Nf3 {[%clk 0:09:51.9]}
5... c5 {[%clk 0:09:19.1]} 6. e3 {[%clk 0:09:42.3]} 6... b6 {[%clk 0:09:07.1]}
7. Bd3 {[%clk 0:09:24.7]} 7... Bb7 {[%clk 0:09:04.9]} 8. O-O {[%clk 0:09:25.6]}
8... d6 {[%clk 0:08:50.6]} 9. a3 {[%clk 0:09:08.5]} 9... Bxc3 {[%clk 0:08:50.9]}
10. Bxc3 {[%clk 0:09:09.9]} 10... Nbd7 {[%clk 0:08:39.6]} 11. dxc5 {[%clk
0:08:58.5]} 11... Nxc5 {[%clk 0:08:25.1]} 12. Be2 {[%clk 0:08:59.5]} 12... Nce4
{[%clk 0:07:20.9]} 13. Be1 {[%clk 0:08:55.9]} 13... Rc8 {[%clk 0:07:07.2]} 14.
Nd4 {[%clk 0:08:54.6]} 14... d5 {[%clk 0:05:35.1]} 15. f3 {[%clk 0:08:53]} 15...
Nd6 {[%clk 0:05:34.5]} 16. cxd5 {[%clk 0:08:51.6]} 16... Nxd5 {[%clk 0:05:34.9]}
17. Bf2 {[%clk 0:08:38.1]} 17... Qg5 {[%clk 0:05:14]} 18. Qb3 {[%clk 0:08:32.4]}
18... e5 {[%clk 0:04:58.6]} 19. h4 {[%clk 0:08:14.2]} 19... Qh6 {[%clk
0:04:22.6]} 20. Nc2 {[%clk 0:08:06.6]} 20... Nf5 {[%clk 0:03:35.8]} 21. Bc4
{[%clk 0:08:02.5]} 21... Nxh4 {[%clk 0:03:24.3]} 22. Bxd5 {[%clk 0:07:57]} 22...
Bxd5 {[%clk 0:03:24.6]} 23. Qxd5 {[%clk 0:07:58.6]} 23... Rxc2 {[%clk
0:02:32.5]} 24. Qe4 {[%clk 0:07:58.3]} 24... Nxg2 {[%clk 0:02:31.2]} 25. Qxc2
{[%clk 0:07:47.4]} 25... Qg5 {[%clk 0:02:30.5]} 26. Kh2 {[%clk 0:07:45.7]} 26...
Nxe3 {[%clk 0:01:47.3]} 27. Bxe3 {[%clk 0:07:45.6]} 27... Qxe3 {[%clk
0:01:49.2]} 28. Rae1 {[%clk 0:07:44.9]} 28... Qf4+ {[%clk 0:01:49.4]} 29. Kh1
{[%clk 0:07:46.1]} 29... f5 {[%clk 0:01:32.1]} 30. Qh2 {[%clk 0:07:45.6]} 30...
Qg5 {[%clk 0:01:03.7]} 31. Qxe5 {[%clk 0:07:42.8]} 31... Rf6 {[%clk 0:00:55.8]}
32. Qd5+ {[%clk 0:07:43]} 1-0

[Event "GrandPrix_29.05"]
[Site "Chess.com"]
[Date "2020.05.29"]
[Round "1"]
[White "SavelievAlexei"]
[Black "jmduque"]
[Result "1-0"]
[WhiteElo "2314"]
[BlackElo "1767"]
[TimeControl "600+2"]
[EndTime "9:14:59 PDT"]
[Termination "SavelievAlexei won by resignation"]

1. e4 {[%clk 0:10:01.3]} 1... c5 {[%clk 0:09:38.6]} 2. Nf3 {[%clk 0:10:00.8]}
2... e6 {[%clk 0:09:38.6]} 3. d4 {[%clk 0:10:01.8]} 3... cxd4 {[%clk 0:09:36]}
4. Nxd4 {[%clk 0:10:03.7]} 4... Nc6 {[%clk 0:09:36.6]} 5. Nc3 {[%clk 0:10:04.3]}
5... Qc7 {[%clk 0:09:37]} 6. Be2 {[%clk 0:10:02.9]} 6... a6 {[%clk 0:09:36.9]}
7. Be3 {[%clk 0:10:00.6]} 7... Nf6 {[%clk 0:09:37.5]} 8. a3 {[%clk 0:09:58.2]}
8... Be7 {[%clk 0:09:37.2]} 9. O-O {[%clk 0:09:58.7]} 9... O-O {[%clk
0:09:33.7]} 10. f4 {[%clk 0:09:59.2]} 10... d6 {[%clk 0:09:34.2]} 11. Kh1 {[%clk
0:09:14]} 11... Re8 {[%clk 0:09:27]} 12. Qe1 {[%clk 0:09:08.5]} 12... Bd7 {[%clk
0:09:05.8]} 13. Qg3 {[%clk 0:08:58.2]} 13... Nxd4 {[%clk 0:09:05.9]} 14. Bxd4
{[%clk 0:09:00.1]} 14... Bc6 {[%clk 0:09:06.5]} 15. Rae1 {[%clk 0:08:49.6]}
15... Rad8 {[%clk 0:08:57.3]} 16. Bd3 {[%clk 0:08:49.7]} 16... b5 {[%clk
0:08:42.2]} 17. Re2 {[%clk 0:07:12.5]} 17... g6 {[%clk 0:08:08.7]} 18. f5 {[%clk
0:06:07.2]} 18... e5 {[%clk 0:06:58.4]} 19. Be3 {[%clk 0:06:06.4]} 19... d5
{[%clk 0:06:15.8]} 20. exd5 {[%clk 0:05:55.2]} 20... Nxd5 {[%clk 0:06:16.4]} 21.
Nxd5 {[%clk 0:05:54.5]} 21... Bxd5 {[%clk 0:06:17.5]} 22. fxg6 {[%clk 0:05:55]}
22... hxg6 {[%clk 0:06:14.2]} 23. Bxg6 {[%clk 0:05:55.7]} 23... fxg6 {[%clk
0:06:07.4]} 24. Qxg6+ {[%clk 0:05:57.6]} 24... Kh8 {[%clk 0:06:08.2]} 25. Rf5
{[%clk 0:05:36.2]} 25... Bxg2+ {[%clk 0:05:44.5]} 26. Rxg2 {[%clk 0:05:11.5]}
26... Rd1+ {[%clk 0:05:19.8]} 27. Bg1 {[%clk 0:05:09.7]} 27... Rxg1+ {[%clk
0:05:19.4]} 28. Rxg1 {[%clk 0:05:09.4]} 28... Qb7+ {[%clk 0:05:19.7]} 29. Rg2
{[%clk 0:05:10.9]} 1-0

[Event "GrandPrix_29.05"]
[Site "Chess.com"]
[Date "2020.05.29"]
[Round "1"]
[White "Saqo007"]
[Black "Gabrielian_Artur"]
[Result "0-1"]
[WhiteElo "2112"]
[BlackElo "2558"]
[TimeControl "600+2"]
[EndTime "9:15:22 PDT"]
[Termination "Gabrielian_Artur won by resignation"]

1. d4 {[%clk 0:10:01.8]} 1... Nf6 {[%clk 0:10:00]} 2. c4 {[%clk 0:10:02]} 2...
c5 {[%clk 0:10:00.6]} 3. d5 {[%clk 0:10:02.9]} 3... e6 {[%clk 0:10:01.4]} 4. Nc3
{[%clk 0:10:03.3]} 4... exd5 {[%clk 0:10:02.2]} 5. cxd5 {[%clk 0:09:57.7]} 5...
d6 {[%clk 0:10:02.9]} 6. Nf3 {[%clk 0:09:55]} 6... g6 {[%clk 0:10:03.2]} 7. Bf4
{[%clk 0:09:56.4]} 7... Bg7 {[%clk 0:10:02.1]} 8. Qa4+ {[%clk 0:09:55.9]} 8...
Bd7 {[%clk 0:09:58.1]} 9. Qb3 {[%clk 0:09:56.4]} 9... b5 {[%clk 0:09:59]} 10.
Bxd6 {[%clk 0:09:52.9]} 10... Qb6 {[%clk 0:09:59.5]} 11. Be5 {[%clk 0:09:49.8]}
11... O-O {[%clk 0:09:59.8]} 12. e3 {[%clk 0:09:46.7]} 12... c4 {[%clk
0:10:00.2]} 13. Qb4 {[%clk 0:08:35.9]} 13... Na6 {[%clk 0:09:23.9]} 14. Qd6
{[%clk 0:08:35.2]} 14... b4 {[%clk 0:08:07.3]} 15. Bxc4 {[%clk 0:07:21.8]} 15...
bxc3 {[%clk 0:07:58.5]} 16. bxc3 {[%clk 0:06:39]} 16... Nc5 {[%clk 0:07:42.6]}
17. O-O {[%clk 0:06:32.4]} 17... Nfe4 {[%clk 0:07:32.6]} 18. Qxb6 {[%clk
0:06:17.1]} 18... axb6 {[%clk 0:07:33]} 19. Rab1 {[%clk 0:06:01.8]} 19... Bxe5
{[%clk 0:06:55.8]} 20. Nxe5 {[%clk 0:06:01]} 20... Nd2 {[%clk 0:06:54.8]} 21.
Rxb6 {[%clk 0:05:57]} 21... Nxf1 {[%clk 0:06:48.9]} 22. Kxf1 {[%clk 0:05:58.9]}
22... Rfb8 {[%clk 0:06:44.9]} 23. Rf6 {[%clk 0:05:33.4]} 23... Bb5 {[%clk
0:06:34.3]} 24. Bxb5 {[%clk 0:05:28.6]} 24... Rxb5 {[%clk 0:06:34.7]} 25. c4
{[%clk 0:05:16.5]} 25... Rb1+ {[%clk 0:06:32.5]} 26. Ke2 {[%clk 0:05:17.2]}
26... Rxa2+ {[%clk 0:06:32.9]} 27. Kf3 {[%clk 0:05:18.7]} 27... Rxf2+ {[%clk
0:06:32.6]} 28. Kxf2 {[%clk 0:05:09.5]} 28... Ne4+ {[%clk 0:06:33.6]} 29. Ke2
{[%clk 0:05:08.9]} 29... Nxf6 {[%clk 0:06:35.5]} 30. d6 {[%clk 0:05:10.4]} 30...
Kf8 {[%clk 0:06:03.2]} 31. c5 {[%clk 0:05:08.1]} 31... Rb5 {[%clk 0:05:34.4]}
32. Nd3 {[%clk 0:04:43.2]} 32... Ke8 {[%clk 0:05:04]} 33. c6 {[%clk 0:04:26.4]}
33... Ne4 {[%clk 0:04:55.1]} 34. d7+ {[%clk 0:04:13.6]} 34... Kd8 {[%clk
0:04:53.9]} 35. Kf3 {[%clk 0:04:14.9]} 35... Ng5+ {[%clk 0:04:49.7]} 36. Kf4
{[%clk 0:04:04.2]} 36... Ne6+ {[%clk 0:04:48]} 37. Kf3 {[%clk 0:03:57.4]} 37...
Kc7 {[%clk 0:04:43.3]} 0-1

[Event "GrandPrix_29.05"]
[Site "Chess.com"]
[Date "2020.05.29"]
[Round "1"]
[White "AbasovN"]
[Black "Sergey_Krivenko"]
[Result "1-0"]
[WhiteElo "2553"]
[BlackElo "2110"]
[TimeControl "600+2"]
[EndTime "9:15:22 PDT"]
[Termination "AbasovN won by resignation"]

1. e4 {[%clk 0:09:57]} 1... e6 {[%clk 0:09:58.9]} 2. d4 {[%clk 0:09:57.1]} 2...
d5 {[%clk 0:09:58.7]} 3. exd5 {[%clk 0:09:59]} 3... exd5 {[%clk 0:09:58.7]} 4.
Nf3 {[%clk 0:10:00.4]} 4... Bd6 {[%clk 0:09:58.4]} 5. Bd3 {[%clk 0:09:58.8]}
5... Nc6 {[%clk 0:09:52.7]} 6. h3 {[%clk 0:09:52]} 6... Nge7 {[%clk 0:09:49]} 7.
O-O {[%clk 0:09:48.9]} 7... Bf5 {[%clk 0:09:45.3]} 8. Re1 {[%clk 0:09:48.7]}
8... O-O {[%clk 0:09:15.9]} 9. Nc3 {[%clk 0:09:14.8]} 9... Bb4 {[%clk
0:08:27.5]} 10. Bxf5 {[%clk 0:09:05]} 10... Nxf5 {[%clk 0:08:26.4]} 11. Qd3
{[%clk 0:09:06.5]} 11... Qd7 {[%clk 0:07:18.7]} 12. a3 {[%clk 0:08:42]} 12...
Bxc3 {[%clk 0:07:05.7]} 13. Qxc3 {[%clk 0:08:43.9]} 13... Rfe8 {[%clk
0:06:59.7]} 14. Rxe8+ {[%clk 0:07:53.3]} 14... Rxe8 {[%clk 0:07:01.6]} 15. Qd3
{[%clk 0:07:54.6]} 15... Nd6 {[%clk 0:04:52.8]} 16. Bf4 {[%clk 0:07:46]} 16...
Ne4 {[%clk 0:04:28.8]} 17. Re1 {[%clk 0:07:44]} 17... Ne7 {[%clk 0:03:26.7]} 18.
Nd2 {[%clk 0:07:03.3]} 18... Nxd2 {[%clk 0:02:46.6]} 19. Qxd2 {[%clk 0:07:05.2]}
19... Nf5 {[%clk 0:02:21.6]} 20. Rxe8+ {[%clk 0:06:59.2]} 20... Qxe8 {[%clk
0:02:23.5]} 21. Bxc7 {[%clk 0:06:57]} 21... Qe4 {[%clk 0:02:23.4]} 22. c3 {[%clk
0:06:35.3]} 22... Nh4 {[%clk 0:02:20.4]} 23. f3 {[%clk 0:05:46.6]} 23... Qxf3
{[%clk 0:01:57]} 24. Qg5 {[%clk 0:05:47.2]} 24... Qf6 {[%clk 0:01:55.7]} 25.
Qxd5 {[%clk 0:05:42.2]} 1-0

[Event "GrandPrix_29.05"]
[Site "Chess.com"]
[Date "2020.05.29"]
[Round "1"]
[White "Gannikus21"]
[Black "OhanyanEminChess"]
[Result "0-1"]
[WhiteElo "2060"]
[BlackElo "2148"]
[TimeControl "600+2"]
[EndTime "9:15:56 PDT"]
[Termination "OhanyanEminChess won by resignation"]

1. e4 {[%clk 0:10:01.2]} 1... e5 {[%clk 0:09:51.9]} 2. Nf3 {[%clk 0:09:59.6]}
2... Nc6 {[%clk 0:09:51.8]} 3. Bb5 {[%clk 0:09:58.6]} 3... f5 {[%clk 0:09:50.3]}
4. Nc3 {[%clk 0:09:57.6]} 4... fxe4 {[%clk 0:09:39.9]} 5. Nxe4 {[%clk
0:09:52.6]} 5... Nf6 {[%clk 0:09:38]} 6. Qe2 {[%clk 0:09:50.3]} 6... Qe7 {[%clk
0:09:37.7]} 7. Nxf6+ {[%clk 0:09:44.9]} 7... gxf6 {[%clk 0:09:37.9]} 8. O-O
{[%clk 0:09:25.3]} 8... d5 {[%clk 0:09:24.6]} 9. d4 {[%clk 0:09:24.4]} 9... e4
{[%clk 0:09:13.1]} 10. Nh4 {[%clk 0:09:23.2]} 10... f5 {[%clk 0:08:55.9]} 11.
Bxc6+ {[%clk 0:09:21.4]} 11... bxc6 {[%clk 0:08:56.3]} 12. Qh5+ {[%clk
0:09:22.8]} 12... Qf7 {[%clk 0:08:55.2]} 13. Qxf7+ {[%clk 0:09:22.7]} 13... Kxf7
{[%clk 0:08:57.1]} 14. g3 {[%clk 0:09:23.6]} 14... c5 {[%clk 0:07:16.6]} 15. c3
{[%clk 0:09:11.3]} 15... cxd4 {[%clk 0:07:10.6]} 16. cxd4 {[%clk 0:09:11]} 16...
c5 {[%clk 0:07:11.5]} 17. dxc5 {[%clk 0:09:08.9]} 17... Bxc5 {[%clk 0:07:05.3]}
18. Be3 {[%clk 0:09:09.7]} 18... d4 {[%clk 0:07:00]} 19. Rac1 {[%clk 0:09:10]}
19... Bb6 {[%clk 0:06:35.8]} 20. Bf4 {[%clk 0:08:48.4]} 20... Be6 {[%clk
0:06:10.8]} 21. Bc7 {[%clk 0:08:41.9]} 21... Rhc8 {[%clk 0:05:54.2]} 22. Bxb6
{[%clk 0:08:42.4]} 22... axb6 {[%clk 0:05:55.8]} 23. a3 {[%clk 0:08:43.8]} 23...
d3 {[%clk 0:05:28.7]} 24. Ng2 {[%clk 0:08:44.3]} 24... Bb3 {[%clk 0:04:28]} 25.
Ne3 {[%clk 0:08:28.3]} 25... Rxc1 {[%clk 0:02:28.9]} 26. Rxc1 {[%clk 0:08:30.2]}
26... d2 {[%clk 0:02:30.1]} 27. Rc7+ {[%clk 0:08:28.4]} 27... Ke6 {[%clk
0:02:31.1]} 28. Rxh7 {[%clk 0:07:55]} 28... d1=Q+ {[%clk 0:01:49.2]} 29. Nxd1
{[%clk 0:07:54.4]} 29... Bxd1 {[%clk 0:01:51.1]} 30. Rh6+ {[%clk 0:07:56.3]}
30... Ke5 {[%clk 0:01:23.1]} 31. Rxb6 {[%clk 0:07:58.2]} 31... Rc8 {[%clk
0:01:22.1]} 32. Rb5+ {[%clk 0:08:00.1]} 32... Kf6 {[%clk 0:01:18.9]} 33. Rb6+
{[%clk 0:07:54.4]} 33... Kg7 {[%clk 0:00:46.3]} 34. Kf1 {[%clk 0:07:43.5]} 34...
Bf3 {[%clk 0:00:38.6]} 35. Ke1 {[%clk 0:07:39.3]} 35... Rd8 {[%clk 0:00:37.4]}
36. Rb7+ {[%clk 0:07:39.6]} 36... Kg6 {[%clk 0:00:25]} 37. Rb6+ {[%clk 0:07:40]}
37... Kg5 {[%clk 0:00:23]} 38. h4+ {[%clk 0:07:40.6]} 38... Kg4 {[%clk
0:00:23.5]} 0-1

[Event "GrandPrix_29.05"]
[Site "Chess.com"]
[Date "2020.05.29"]
[Round "1"]
[White "benko_008"]
[Black "VincentKeymer"]
[Result "0-1"]
[WhiteElo "2071"]
[BlackElo "2535"]
[TimeControl "600+2"]
[EndTime "9:16:29 PDT"]
[Termination "VincentKeymer won by resignation"]

1. Nf3 {[%clk 0:09:57.7]} 1... d5 {[%clk 0:10:00.1]} 2. d4 {[%clk 0:09:57.1]}
2... Nf6 {[%clk 0:10:00.5]} 3. c4 {[%clk 0:09:56.5]} 3... e6 {[%clk 0:10:01.8]}
4. cxd5 {[%clk 0:09:53.1]} 4... exd5 {[%clk 0:10:00.6]} 5. Nc3 {[%clk
0:09:53.7]} 5... c6 {[%clk 0:09:58.3]} 6. Bg5 {[%clk 0:09:49.3]} 6... h6 {[%clk
0:09:52.5]} 7. Bf4 {[%clk 0:09:34.6]} 7... Nh5 {[%clk 0:09:39.7]} 8. Bg3 {[%clk
0:08:29.1]} 8... Nxg3 {[%clk 0:09:38.6]} 9. hxg3 {[%clk 0:08:29.7]} 9... Bd6
{[%clk 0:09:35.1]} 10. e3 {[%clk 0:08:29.4]} 10... Nd7 {[%clk 0:09:32.7]} 11. g4
{[%clk 0:08:04.1]} 11... Nf6 {[%clk 0:08:52.9]} 12. g5 {[%clk 0:07:56.4]} 12...
Ng8 {[%clk 0:08:49.2]} 13. Bd3 {[%clk 0:07:30.7]} 13... Bg4 {[%clk 0:08:47.4]}
14. Qb3 {[%clk 0:07:04.8]} 14... Rb8 {[%clk 0:08:27.9]} 15. g6 {[%clk
0:06:37.4]} 15... f6 {[%clk 0:08:06.5]} 16. Nh4 {[%clk 0:06:20]} 16... Ne7
{[%clk 0:08:03.7]} 17. f3 {[%clk 0:05:52.3]} 17... Bg3+ {[%clk 0:07:56.6]} 18.
Kd2 {[%clk 0:05:52.3]} 18... Be6 {[%clk 0:07:50.2]} 19. Ne2 {[%clk 0:05:41.8]}
19... Bd6 {[%clk 0:07:38.5]} 20. g4 {[%clk 0:05:32.9]} 20... Qa5+ {[%clk
0:07:36.3]} 21. Nc3 {[%clk 0:05:31.1]} 21... Kd7 {[%clk 0:07:09.2]} 22. a3
{[%clk 0:05:23.2]} 22... Rhe8 {[%clk 0:07:00]} 23. Rae1 {[%clk 0:04:50.8]} 23...
b5 {[%clk 0:06:43.2]} 24. Ra1 {[%clk 0:04:24]} 24... a6 {[%clk 0:06:32.9]} 25.
Qc2 {[%clk 0:04:12.5]} 25... Qb6 {[%clk 0:06:27.2]} 26. Ng2 {[%clk 0:03:59.8]}
26... c5 {[%clk 0:06:08.2]} 27. dxc5 {[%clk 0:03:59.6]} 27... Bxc5 {[%clk
0:06:10.1]} 28. b4 {[%clk 0:03:58.9]} 28... Bd6 {[%clk 0:06:05.2]} 29. Ne2
{[%clk 0:03:25.5]} 29... Rbc8 {[%clk 0:06:02.1]} 30. Qb2 {[%clk 0:03:25.9]}
30... Be5 {[%clk 0:05:57.3]} 31. Nd4 {[%clk 0:03:09.4]} 31... Nc6 {[%clk
0:05:54.8]} 32. Rac1 {[%clk 0:02:41.2]} 32... Nxd4 {[%clk 0:05:51.4]} 33. exd4
{[%clk 0:02:41]} 33... Bxd4 {[%clk 0:05:52.4]} 34. Qb1 {[%clk 0:02:35.2]} 34...
Bc3+ {[%clk 0:05:39.1]} 35. Rxc3 {[%clk 0:02:09.6]} 35... Qf2+ {[%clk
0:05:39.4]} 36. Be2 {[%clk 0:02:10.6]} 36... Rxc3 {[%clk 0:05:39.3]} 37. Kxc3
{[%clk 0:01:59.6]} 37... Qxe2 {[%clk 0:05:40]} 38. Nf4 {[%clk 0:01:54.2]} 38...
Qe5+ {[%clk 0:05:40.2]} 0-1